Cogmind - Beta 13 *** ADVENTURER MODE // 2024.04.15 @ 06:31:17 Player: Hannah Result: Core destroyed Performance ------------- Evolutions (3) 1500 Regions Visited (8) 1600 Robots Destroyed (62) 310 Value Destroyed (2306) 2306 Prototype IDs (4) 80 Alien Tech Used (0) 0 Bonus (26) 26 TOTAL SCORE: 5822 Bonus ------- Follower Combat Kills 190 Aligned with FarCom 300 Friendly Fire -464 Cogmind --------- Core Integrity 0/700 Matter 101/300 Energy 142/310 System Corruption 0% Temperature Critical (558) Movement Walking (200) Ox1 Location -7/Factory Parts ------- > --- POWER (3) -------- Heavy Deuterium Engine > --- PROPULSION (2) --- Improved Titanium Leg > --- UTILITY (6) ------ Advanced Terrain Scan Processor Improved Salvage Targeting Computer Kinecellerator Kinecellerator Improved Utility Shielding Dynamic Insulation System > --- WEAPON (2) ------- Gatling Laser Gatling Laser > --- INVENTORY (5) ---- Heavy Proton Missile Launcher Remote Datajack Peak State ------------ > --- POWER ------------ Heavy Deuterium Engine Heavy Deuterium Engine > --- PROPULSION ------- Heavy Treads > --- UTILITY ---------- Advanced Terrain Scan Processor Advanced Terrain Scan Processor Improved Utility Shielding Backup Plating III Improved Medium Armor Plating Dynamic Insulation System > --- WEAPON ----------- Gatling Laser Improved Grenade Launcher > --- INVENTORY -------- Improved Titanium Leg Wheel Improved Salvage Targeting Computer Gatling Laser Heavy Proton Missile Launcher [Rating: 53] Favorites ----------- Power Light Ion Engine Engine Light Ion Engine Power Core Light Nuclear Core Propulsion Hover Unit Treads Heavy Treads Leg Aluminum Leg Wheel Wheel Hover Unit Hover Unit Utility Structural Scanner Device Structural Scanner Processor Advanced Terrain Scan Processor Hackware Hacking Suite Protection Backup Plating III Weapon Gatling Laser Energy Gun Gatling Laser Energy Cannon Beam Cannon Ballistic Gun Gauss Rifle Ballistic Cannon Bore Cannon Launcher Improved Grenade Launcher Special Weapon Mining Laser Special Melee Weapon Datajack Build | -11 -10 -10 -10 -9 -8 -7 -7 -7 ------- Run | Yrd Mat Min Exi Min Mat Fac Was Fac Slots Evolved 6 | . . . . . 4 2 . . Power 2 | . . . . . 2 . . . Propulsion . | . . . . . . . . . Utility 4 | . . . . . 2 2 . . Weapon . | . . . . . . . . . Parts Attached 76 | 9 9 4 1 4 10 6 14 19 Power 11 | 1 . . . . 3 1 3 3 Engine 4 | 1 . . . . 1 . . 2 Core 7 | . . . . . 2 1 3 1 Reactor . | . . . . . . . . . Propulsion 14 | 4 . 2 . 1 2 . 4 1 Treads 1 | . . . . . . . 1 . Leg 6 | 2 . . . 1 . . 2 1 Wheel 3 | 2 . . . . . . 1 . Hover 4 | . . 2 . . 2 . . . Flight . | . . . . . . . . . Utility 25 | 2 4 . 1 . 4 3 3 8 Device 15 | 2 4 . . . 3 1 2 3 Storage . | . . . . . . . . . Processor 6 | . . . 1 . . 1 1 3 Hackware 1 | . . . . . . 1 . . Protection 3 | . . . . . 1 . . 2 Artifact . | . . . . . . . . . Weapon 26 | 2 5 2 . 3 1 2 4 7 Energy Gun 9 | 2 1 . . 1 . . . 5 Energy Cannon 5 | . . 1 . 1 1 1 1 . Ballistic Gun 3 | . 2 . . 1 . . . . Ballistic Cannon 3 | . 1 . . . . . 2 . Launcher 3 | . . . . . . . 1 2 Special Weapon 2 | . 1 1 . . . . . . Impact Weapon . | . . . . . . . . . Slashing Weapon . | . . . . . . . . . Piercing Weapon . | . . . . . . . . . Special Melee Weapon 1 | . . . . . . 1 . . Unidentified Prototypes 4 | . . . 1 . 1 . 1 1 Parts Lost 20 | . . . . 1 2 . 8 9 Power 7 | . . . . . 2 . 2 3 Propulsion 3 | . . . . 1 . . 1 1 Utility 7 | . . . . . . . 4 3 Weapon 3 | . . . . . . . 1 2 Highest Loss Streak 8 | . . . . 1 1 . 8 3 To Critical Strikes . | . . . . . . . . . Average Slot Usage (%) 83 | . 100 100 100 86 89 87 59 71 Engine 12 | . 14 14 14 14 15 7 9 11 Core 2 | . . . . . 3 9 5 4 Treads 1 | . . . . . . . 1 5 Leg 6 | . 28 3 . 8 3 . 3 1 Hover 8 | . . 24 28 6 13 15 4 . Device 16 | . 28 28 25 14 18 15 7 7 Processor 6 | . . . 2 14 9 9 2 10 Protection 6 | . . . . . 8 7 5 15 Energy Gun 5 | . 12 . . 3 . . . 10 Energy Cannon 3 | . . 10 14 2 9 7 . . Ballistic Gun 3 | . 10 . . 8 9 1 . . Ballistic Cannon 2 | . 2 3 . . . . 11 1 Special Weapon 3 | . 1 14 14 12 . . . . Naked Turns 21 | . . . . . . . 21 . Heaviest Build 48 | 9 10 9 9 16 28 27 36 48 Greatest Support 70 | 20 20 20 12 20 20 16 70 70 Greatest Overweight (x) 6 | . . . . 1 2 1 3 6 Average Overweight (x) . | . . . . . 1 1 1 . Largest Inventory Capacity 5 | 5 5 5 5 5 5 5 5 5 Average Capacity 5 | 5 5 5 5 5 5 5 5 5 Most Carried 5 | 1 5 5 5 5 5 5 5 5 Average Carried 3 | . 3 4 5 4 4 5 2 3 Final Capacity 5 | 5 5 5 5 5 5 5 5 5 Final Carried 5 | 1 4 5 5 4 5 5 3 2 Class Distribution -------------------- 73% | Mutant 18% | Skirmisher 3% | Scavenger-Skirmisher Dominant Class ---------------- Mutant | -10/Materials Mutant | -10/Mines Mutant | -10/Exiles Skirmisher | -9/Mines Skirmisher | -8/Materials Scavenger-Assassin | -7/Factory Mutant | -7/Waste Mutant | -7/Factory Resources | -11 -10 -10 -10 -9 -8 -7 -7 -7 ----------- Run | Yrd Mat Min Exi Min Mat Fac Was Fac Matter Collected 1756 | 259 179 92 . 45 328 . 260 593 Remotely . | . . . . . . . . . Salvage Created 2413 | 71 236 140 . 104 944 16 62 840 Parts 115 | 7 11 10 . 2 46 2 1 36 Haulers Intercepted . | . . . . . . . . . Recyclers Shooed 4 | . 1 . . . . . . 3 Parts Field Recycled . | . . . . . . . . . Retrieved Matter . | . . . . . . . . . Parts Self-Destructed . | . . . . . . . . . Prevented . | . . . . . . . . . Kills | -11 -10 -10 -10 -9 -8 -7 -7 -7 ------- Run | Yrd Mat Min Exi Min Mat Fac Was Fac Combat Hostiles Destroyed 46 | 1 5 2 . 2 17 . . 19 Guns 28 | 1 5 . . . 9 . . 13 Cannons 14 | . . 2 . 2 7 . . 3 AOE 3 | . . . . . . . . 3 Classes Destroyed 14 | 2 1 1 . . 3 1 1 5 Worker 1 | . . . . . . . . 1 Builder 6 | . . . . . 1 . . 5 Tunneler 2 | 1 . . . . . . . 1 Recycler 1 | . . 1 . . . . . . Operator 1 | . . . . . . 1 . . Watcher 3 | . 1 . . . 1 . . 1 Swarmer 2 | . . . . . . . . 2 Grunt 29 | 1 5 2 . 2 13 . . 6 Duelist 2 | . . . . . . . . 2 Sentry 6 | . . . . . 2 . . 4 Hunter 3 | . . . . . 2 . . 1 Programmer 3 | . . . . . . . . 3 Surgeon 1 | . . . . . . . . 1 Thug 1 | . . . . . . . . 1 Savage 1 | . . . . . . . 1 . Best Kill Streak 6 | 2 3 3 . 2 6 1 . 4 Combat Bots Only 4 | 1 3 2 . 2 4 . . 4 Max Kills in Single Turn 2 | 1 1 1 . 1 1 1 1 2 Gunslinging . | . . . . . . . . . Exploded 1 | . . . . . . . . 1 Melee . | . . . . . . . . . Uniques/NPCs Destroyed . | . . . . . . . . . Combat | -11 -10 -10 -10 -9 -8 -7 -7 -7 -------- Run | Yrd Mat Min Exi Min Mat Fac Was Fac Hostile Shots Fired 391 | 3 23 11 . 18 76 4 7 249 Missed 138 | 2 6 5 . 3 24 3 . 95 Damage Taken 3046 | 8 143 66 . 171 574 43 254 1787 Core 946 | . 34 . . 57 147 . 171 537 Absorbed by Shields 12 | . . . . . . 12 . . Redirected to Shielding 83 | . . . . . . . . 83 Ignored by Resistances 820 | 2 44 20 . 50 164 15 67 458 Regen/Repaired (Parts) 4 | . . . . . . . 4 . Core Remaining (%) 78 | 100 . . . 63 73 . . . Volleys Fired 258 | 6 29 17 . 30 73 7 6 90 Largest 2 | 2 2 1 . 1 2 1 2 2 Hottest 160 | 90 90 100 . 100 93 80 114 160 Shots Fired 341 | 10 52 17 . 30 92 7 11 122 Gun 188 | 10 52 . . 2 46 . . 78 Cannon 107 | . . 8 . 13 46 7 11 22 Launcher 22 | . . . . . . . . 22 Special 24 | . . 9 . 15 . . . . Kinetic 115 | . 28 8 . 1 46 . 10 22 Thermal 169 | 6 10 9 . 29 34 2 1 78 Explosive 22 | . . . . . . . . 22 Electromagnetic 35 | 4 14 . . . 12 5 . . Robot Hit Streak 23 | 3 12 2 . 4 15 2 5 23 Robot Miss Streak 6 | 1 3 3 . 1 2 1 2 6 Penetration Max 1 | . . . . . 1 . 1 . Secondary Targets 1 | . 1 . . . . . . . Max Gunslinging Chain 1 | . 1 . . . . . . . Shots Hit Robots 215 | 5 33 4 . 8 68 3 9 85 Core Hits 145 | 2 13 4 . 3 33 2 2 86 Critical Kills 4 | . . . . . 2 . 1 1 Critical Parts Destroyed 8 | . . . . . . . 3 5 Critical Strikes 18 | 1 1 . . . 2 . 8 6 Burn 2 | 1 1 . . . . . . . Destroy 16 | . . . . . 2 . 8 6 Melee Attacks 2 | . . . . . . . 2 . Impact . | . . . . . . . . . Slashing . | . . . . . . . . . Piercing . | . . . . . . . . . Sneak Attacks . | . . . . . . . . . Combat Hostiles . | . . . . . . . . . Follow-up Attacks . | . . . . . . . . . Damage Inflicted 5797 | 92 463 88 . 142 1664 84 255 3009 Guns 2840 | 92 454 . . . 694 . . 1600 Cannons 1830 | . . 88 . 140 964 84 255 299 Explosions 1104 | . . . . . . . . 1104 Melee . | . . . . . . . . . Ramming 23 | . 9 . . 2 6 . . 6 Kinetic 1511 | . 202 88 . . 694 . 228 299 Thermal 2759 | 62 111 . . 140 673 . 27 1746 Explosive 916 | . . . . . . . . 916 Electromagnetic 588 | 30 141 . . . 291 84 . 42 Impact . | . . . . . . . . . Slashing . | . . . . . . . . . Piercing . | . . . . . . . . . Highest Corruption . | . . . . . . . . . Average Corruption . | . . . . . . . . . Corruption Purged . | . . . . . . . . . Corruption Blocked . | . . . . . . . . . Overload Shots . | . . . . . . . . . Overflow Damage 34 | . . . . . 21 . . 13 Projectiles 21 | . . . . . 21 . . . Explosions 13 | . . . . . . . . 13 Melee . | . . . . . . . . . Knockbacks 6 | . . 1 . . . . 1 4 Impact . | . . . . . . . . . Kinetic 6 | . . 1 . . . . 1 4 Secondary . | . . . . . . . . . Self-Inflicted Damage 98 | . . . . . 3 . . 95 Shots 3 | . . . . . . . . 3 Rammed 2 | . . . . . 1 . . 1 Targets Rammed 6 | . 2 . . 1 1 . . 2 Kicked 4 | . 2 . . 1 . . . 1 Crushed . | . . . . . . . . . Highest Temperature 635 | 66 264 142 . 315 396 66 195 635 Average Temperature 154 | 32 121 46 . 79 175 27 86 194 Received Heat Transfer 1134 | 6 102 48 . 123 351 . . 504 Effects 71 | . 1 . . . 14 . . 56 Shutdowns 23 | . . . . . 5 . . 18 Energy Bleed 9 | . . . . . 3 . . 6 Interference 17 | . 1 . . . 5 . . 11 Matter Decay 8 | . . . . . 1 . . 7 Short Circuit 2 | . . . . . . . . 2 Damage (minor) 3 | . . . . . . . . 3 Damage (major) 7 | . . . . . . . . 7 Damage (core) 2 | . . . . . . . . 2 Siege Activations . | . . . . . . . . . Robots Corrupted 1 | . . . . . 1 . . . Combat Hostiles 1 | . . . . . 1 . . . Parts Fried 5 | . 1 . . . 4 . . . Impact Corruptions . | . . . . . . . . . Robots Melted . | . . . . . . . . . Combat Hostiles . | . . . . . . . . . Parts Melted 21 | 1 1 . . . 4 . . 15 Heat Transferred 5687 | 259 407 . . 296 925 . 50 3750 Parts Sabotaged . | . . . . . . . . . Parts Stolen . | . . . . . . . . . Parts Stripped . | . . . . . . . . . Power Chain Reactions 2 | . . . . . . . . 2 Alert | -11 -10 -10 -10 -9 -8 -7 -7 -7 ------- Run | Yrd Mat Min Exi Min Mat Fac Was Fac Peak Influence 328 | 25 108 104 . 40 328 106 30 198 Initial 86 | . 13 29 . . . 86 30 . Average 70 | 7 53 87 . 28 153 98 3 79 Maximum Alert Level 1 | . . . . . 1 . . . Low Security (%) 94 | 100 100 100 . 100 60 100 100 100 Level 1 5 | . . . . . 39 . . . Level 2 . | . . . . . . . . . Level 3 . | . . . . . . . . . Level 4 . | . . . . . . . . . Level 5 . | . . . . . . . . . High Security . | . . . . . . . . . Max Security . | . . . . . . . . . Squads Dispatched 13 | . 2 . . 1 2 1 . 7 Investigation 7 | . 2 . . 1 1 1 . 2 Extermination 2 | . . . . . . . . 2 Reinforcement 4 | . . . . . 1 . . 3 Assault . | . . . . . . . . . Garrison . | . . . . . . . . . Intercept . | . . . . . . . . . Searches Triggered . | . . . . . . . . . Construction Impeded 1 | . . . . . . . . 1 Haulers Reinforced 1 | . . . . . . . . 1 Active Scanning Responses . | . . . . . . . . . Cargo Convoy Interrupts . | . . . . . . . . . Stealth | -11 -10 -10 -10 -9 -8 -7 -7 -7 --------- Run | Yrd Mat Min Exi Min Mat Fac Was Fac Distress Signals 5 | . 1 . . . 2 1 . 1 Communications Jammed . | . . . . . . . . . Distress Signals . | . . . . . . . . . Times Spotted 76 | 1 9 2 . 2 25 2 6 29 Peak Tracking Total 6 | 1 3 2 . 2 5 2 5 6 Tactical Retreats 2 | . . . . . 1 . 1 . Traps | -11 -10 -10 -10 -9 -8 -7 -7 -7 ------- Run | Yrd Mat Min Exi Min Mat Fac Was Fac Traps Triggered 4 | . . . . . . 2 . 2 Indirectly . | . . . . . . . . . Trap Hack Attempts . | . . . . . . . . . Triggered . | . . . . . . . . . Disarmed . | . . . . . . . . . Reprogrammed . | . . . . . . . . . Reused . | . . . . . . . . . Traps Extracted . | . . . . . . . . . Installed . | . . . . . . . . . Triggered . | . . . . . . . . . Machines | -11 -10 -10 -10 -9 -8 -7 -7 -7 ---------- Run | Yrd Mat Min Exi Min Mat Fac Was Fac Machines Disabled 5 | . . . . . 2 . . 3 Max in Single Turn 2 | . . . . . 1 . . 2 Garrison Access 1 | . . . . . . . . 1 Machines Repaired . | . . . . . . . . . Machines Dismantled . | . . . . . . . . . Machines Sabotaged . | . . . . . . . . . Overloaded Fab Kills . | . . . . . . . . . Hacking | -11 -10 -10 -10 -9 -8 -7 -7 -7 --------- Run | Yrd Mat Min Exi Min Mat Fac Was Fac Machines Accessed 19 | . 7 . . 1 2 1 . 8 Terminals 11 | . 5 . . . 1 1 . 4 Fabricators 2 | . . . . . . . . 2 Repair Stations 2 | . 1 . . . 1 . . . Recycling Units 1 | . 1 . . . . . . . Scanalyzers 1 | . . . . . . . . 1 Garrison Access 1 | . . . . . . . . 1 Total Hacks 50 | . 20 . . 1 4 4 . 21 Successful 26 | . 10 . . 1 4 1 . 10 Failed 24 | . 10 . . . . 3 . 11 Catastrophic . | . . . . . . . . . Database Lockouts . | . . . . . . . . . Manual 7 | . . . 7 . . . . . Terminals 33 | . 16 . . . 3 4 . 10 Fabricators 5 | . . . . . . . . 5 Repair Stations 2 | . 1 . . . 1 . . . Recycling Units 3 | . 3 . . . . . . . Scanalyzers 2 | . . . . . . . . 2 Garrison Access 4 | . . . . . . . . 4 Terminal Hacks 16 | . 7 . . 1 3 1 . 4 Record 4 | . 3 . . . . 1 . . Open Door 1 | . . . . 1 . . . . Open DSF 2 | . . . . . . . . 2 Alert Level 3 | . 1 . . . 2 . . . Unreport Threat 1 | . . . . . 1 . . . Locate Traps 1 | . . . . . . . . 1 Dispatch Records 1 | . . . . . . . . 1 Maintenance Status 1 | . 1 . . . . . . . Investigation Status 1 | . 1 . . . . . . . Zone Layout 1 | . 1 . . . . . . . Fabricator Hacks 3 | . . . . . . . . 3 Network Status 2 | . . . . . . . . 2 Build 1 | . . . . . . . . 1 Repair Station Hacks 2 | . 1 . . . 1 . . . Scan Component 1 | . 1 . . . . . . . Refit 1 | . . . . . 1 . . . Recycling Unit Hacks 2 | . 2 . . . . . . . Process 1 | . 1 . . . . . . . Report Inventory 1 | . 1 . . . . . . . Scanalyzer . | . . . . . . . . . Garrison Access Hacks 3 | . . . . . . . . 3 Unlock Access 1 | . . . . . . . . 1 Seal Access 1 | . . . . . . . . 1 Coupler Status 1 | . . . . . . . . 1 Unauthorized Hacks . | . . . . . . . . . Terminals . | . . . . . . . . . Fabricators . | . . . . . . . . . Repair Stations . | . . . . . . . . . Recycling Units . | . . . . . . . . . Scanalyzers . | . . . . . . . . . Garrison Access . | . . . . . . . . . Data Cores Recovered 1 | . . . . . . 1 . . Used . | . . . . . . . . . Hacking Detections 12 | . 5 . . . 1 1 . 5 Full Trace Events 5 | . 2 . . . 1 1 . 1 Feedback Events . | . . . . . . . . . Feedback Blocked . | . . . . . . . . . Robot Schematics Acquired . | . . . . . . . . . Robots Built 1 | . . . . . . . . 1 Authchips . | . . . . . . . . . Time 81 | . . . . . . . . 81 Total Robot Build Rating 1 | . . . . . . . . 1 Part Schematics Acquired . | . . . . . . . . . Parts Built . | . . . . . . . . . Authchips . | . . . . . . . . . Time . | . . . . . . . . . Total Part Build Rating . | . . . . . . . . . Parts Repaired . | . . . . . . . . . Time . | . . . . . . . . . Parts Recycled . | . . . . . . . . . Recycled Matter . | . . . . . . . . . Retrieved Matter . | . . . . . . . . . Retrieved Components . | . . . . . . . . . Parts Scanalyzed . | . . . . . . . . . Part Schematics Acquired . | . . . . . . . . . Parts Damaged . | . . . . . . . . . Bothacking | -11 -10 -10 -10 -9 -8 -7 -7 -7 ------------ Run | Yrd Mat Min Exi Min Mat Fac Was Fac Used RIF Installer . | . . . . . . . . . Robots Hacked 1 | . . . . . . . 1 . Non-combat . | . . . . . . . . . Combat 1 | . . . . . . . 1 . Robot Hacks Applied 1 | . . . . . . . 1 . parse_system 1 | . . . . . . . 1 . Relay Couplers Released 4 | . . . . . . . . 4 Programmers 4 | . . . . . . . . 4 Fabnet Peak Effective % . | . . . . . . . . . Robots Rewired . | . . . . . . . . . Allies Hacked . | . . . . . . . . . Hacks Repelled . | . . . . . . . . . Allies | -11 -10 -10 -10 -9 -8 -7 -7 -7 -------- Run | Yrd Mat Min Exi Min Mat Fac Was Fac Total Allies 21 | . . 1 . . . . 19 1 Largest Group 18 | . . 1 . . . . 18 4 Highest-Rated Group 434 | . . 31 . . . . 434 100 Highest-Rated Ally 35 | . . 31 . . . . 35 31 Total Orders . | . . . . . . . . . Ally Attacks 176 | . . 3 . . . . 161 12 Total Damage 4578 | . . 63 . . . . 4405 110 Kills 11 | . . . . . . . 9 2 Allies Corrupted . | . . . . . . . . . Allies Melted . | . . . . . . . . . Intel | -11 -10 -10 -10 -9 -8 -7 -7 -7 ------- Run | Yrd Mat Min Exi Min Mat Fac Was Fac Robot Analysis Total . | . . . . . . . . . Derelict Logs Recovered 4 | . . 3 . 1 . . . . Drone Launches . | . . . . . . . . . Drone Recoveries . | . . . . . . . . . Exploration | -11 -10 -10 -10 -9 -8 -7 -7 -7 ------------- Run | Yrd Mat Min Exi Min Mat Fac Was Fac Turns Passed 5330 | 159 731 341 544 526 615 238 505 1671 Spaces Moved 4059 | 119 520 462 966 340 338 193 267 854 Core 86 | 18 . . . . . . 66 2 Treads 759 | . . . . . . . 59 700 Legs 1070 | 96 520 30 . 197 52 . 23 152 Wheels 8 | 5 . . . . . . 3 . Hover 2136 | . . 432 966 143 286 193 116 . Flight . | . . . . . . . . . Fastest Speed 50 | 50 120 56 56 56 111 111 50 130 Average Speed 110 | 107 120 60 56 124 127 111 169 164 Slowest Speed 350 | 120 120 120 56 130 180 111 330 350 Overloaded Moves . | . . . . . . . . . Propulsion Burnouts . | . . . . . . . . . Robots Hopped . | . . . . . . . . . Cave-ins Triggered . | . . . . . . . . . Exploration Rate (%) 47 | 9 65 88 73 44 22 5 95 24 Regions Visited 8 Branch Regions 3 Pre-discovered Areas 1 | . . 1 . . . . . . Known Exits Taken . | . . . . . . . . . Unknown Exits Taken 6 | 1 1 1 1 1 1 . . . Scrap Searched 2 | . . 1 . 1 . . . . Spaces Dug 31 | . . 5 . 10 1 . . 15 Terrain Destroyed 138 | . . 6 . 13 11 . 2 106 Melee . | . . . . . . . . . Projectile 39 | . . 6 . 13 11 . 2 7 AOE 99 | . . . . . . . . 99 Terrain Rammed . | . . . . . . . . . Walls Destroyed . | . . . . . . . . . Machines Disabled . | . . . . . . . . . Actions | -11 -10 -10 -10 -9 -8 -7 -7 -7 --------- Run | Yrd Mat Min Exi Min Mat Fac Was Fac Total 4486 | 136 577 489 968 382 429 209 311 985 Wait 2 | . . . . 2 . . . . Move 4052 | 118 519 461 965 339 337 193 266 854 Hop . | . . . . . . . . . Pick Up 43 | 1 8 4 1 1 5 . 10 13 Fast Attach 26 | 9 . . . 3 3 6 1 4 Attach 30 | . 5 . . . 3 . 10 12 Detach 8 | . 5 . . . . . 3 . Swap 20 | . 4 4 1 1 4 . 3 3 Drop 39 | 2 5 3 1 5 3 3 10 7 Fire 258 | 6 29 17 . 30 73 7 6 90 Melee 2 | . . . . . . . 2 . Ram 1 | . . . . . 1 . . . Kick 4 | . 2 . . 1 . . . 1 Crush 1 | . . . . . . . . 1 Escape Stasis . | . . . . . . . . . Rewire . | . . . . . . . . . Trap . | . . . . . . . . . Miscellaneous . | . . . . . . . . . Route ------- -11/Scrapyard -10/Materials (discovered 2 exits: [*Min] / [*Sub]) -10/Mines (discovered 2 exits: *Mat / *Exi) -10/Exiles (discovered 2 exits: *Min x2) -9/Mines -8/Materials -7/Factory -7/Waste -7/Factory (discovered 1 exit: [*Low]) History --------- Turn | Location | Event 2 | -11/Scrapyard | Met Revision 17 100 | -11/Scrapyard | Discovered new exit (range 8) 160 | -11/Scrapyard | Entered Materials 314 | -10/Materials | Build established: Mutant 488 | -10/Materials | Discovered new exit (range 16) 859 | -10/Materials | Discovered new exit (range 11) 891 | -10/Materials | Entered Mines 894 | -10/Mines | Received a Mining Laser from a helpful Derelict 948 | -10/Mines | Learned location of Storage (-9) 980 | -10/Mines | Learned Materials trap positions 1012 | -10/Mines | Identified exit to Materials 1103 | -10/Mines | Discovered new exit (range 10) 1232 | -10/Mines | Entered Exiles 1244 | -10/Exiles | Discovered new exit (range 14) 1261 | -10/Exiles | Met 8R-AWN 1270 | -10/Exiles | Met EX-HEX 1291 | -10/Exiles | Met EX-DEC 1363 | -10/Exiles | Met EX-BIN 1373 | -10/Exiles | Aligned with FarCom system 1373 | -10/Exiles | Given EX-Vault access code 1518 | -10/Exiles | Discovered new exit (range 14) 1691 | -10/Exiles | Opened EX-Vault 1695 | -10/Exiles | Found Prototype Processor 1696 | -10/Exiles | Identified Modified TNC 1709 | -10/Exiles | Warned to stay clear of 0b10 Research branches 1776 | -10/Exiles | Left Exiles lab with Modified TNC 1776 | -10/Exiles | Entered Mines 1838 | -9/Mines | Learned 2 Materials zone layouts 1867 | -9/Mines | Discovered new exit (range 13) 1957 | -9/Mines | Met a Derelict shopkeep closing up shop 2099 | -9/Mines | Build established: Skirmisher 2302 | -9/Mines | Entered Materials 2302 | -8/Materials | Evolved 4 slots: Power x2, Utility x2 2304 | -8/Materials | Loaded intel: 16 trap records 2854 | -8/Materials | Discovered new exit (range 15) 2917 | -8/Materials | Entered Factory 2917 | -7/Factory | Evolved 2 slots: Utility x2 3155 | -7/Factory | Sucked down chute 3155 | -7/Factory | Entered Waste 3156 | -7/Waste | Met a frightened Derelict 3172 | -7/Waste | Spotted C-40 Crusher 3184 | -7/Waste | Crushed by Compactor (1 part destroyed, 2 dropped) 3195 | -7/Waste | Crushed by Compactor (1 part destroyed, 1 dropped) 3206 | -7/Waste | Spotted C-40 Crusher 3206 | -7/Waste | Spotted C-40 Crusher 3222 | -7/Waste | Crushed by Compactor (1 part destroyed, 1 dropped) 3223 | -7/Waste | Spotted C-40 Crusher 3223 | -7/Waste | Spotted C-40 Crusher 3225 | -7/Waste | Crushed by Compactor (1 part destroyed, 2 dropped) 3225 | -7/Waste | Crushed by Compactor (1 part destroyed, 1 dropped) 3228 | -7/Waste | Crushed by Compactor (1 part destroyed) 3242 | -7/Waste | Warlord forces began an assault 3259 | -7/Waste | Lost 8 parts (2p1n4u1w) 3508 | -7/Waste | Spotted C-40 Crusher 3516 | -7/Waste | Build established: Mutant 3526 | -7/Waste | Allies destroyed C-40 Crusher 3551 | -7/Waste | Lost 6 allies 3637 | -7/Waste | Discovered new exit (range 11) 3660 | -7/Waste | Entered Factory 3660 | -7/Factory | Accompanied by 4 allies 3837 | -7/Factory | Lost 3 allies 3937 | -7/Factory | Discovered new exit (range 6) 4425 | -7/Factory | Fabricated T-07 Excavator? 4534 | -7/Factory | P-60 Hacker assimilated allied 9S-UUT(g) 4982 | -7/Factory | Core integrity fell below 50% 5034 | -7/Factory | Lost 3 parts (1n1u1w) 5144 | -7/Factory | Identified exit to Garrison 5322 | -7/Factory | Core integrity fell below 20% 5332 | -7/Factory | Core destroyed Last Messages --------------- disabled. Kinecellerator temporarily disabled. K-01 Serf collects debris. Overheating: Gatling Laser damaged (-40). K-01 Serf collects debris. Overheating: System interference. Gatling Laser temporarily disabled. Kinecellerator temporarily disabled. Gatling Laser temporarily disabled. K-01 Serf collects debris. Overheating: Energy bleed (-38). K-01 Serf collects debris. Overheating: Matter decay (-14). L-41 Fighter destroyed. Power failure, Hvy. Deuterium Engine shutdown. Overheating: Energy bleed (-17). K-01 Serf collects debris. Overheating: Core damaged (-133). [Achievement: First Step to Greatness] [Achievement: 5k Club] Map ----- +----------------------------------------------------+ | ?????????????????????????????????????????????????? | | ?????????????????????????????????????????????????? | | ?????????????????????????????????????????????????? | | ?????????????????????????????????????????????????? | | ?????????????????????????????????????????????????? | | ?????????????????????????????????????????????????? | | ?????????????????????????????????????????????????? | | ?????????????????????????????????????????????????? | | ?????????????????????????????????????????????????? | | ??????????????????##############?????????????????? | | ??????????????????# #?????????????????? | | ??????????????????# #?????????????????? | | ??????????????????# #?????????????????? | | ??????????????????# #?????????????????? | | ??????????????????# #?????????????????? | | ??????????????????# #?????????????????? | | ??????????????????# ! [ #?????????????????? | | ??????????????????# #?????????????????? | | ??????????????????# ] #?????????????????? | | ??????????????????# #?????????????????? | | ??????????????????# #?????????????????? | | ??????????????????# #?????????????????? | | ???????????##############+######?????????????????? | | ?????????? k #???????????????????? | | ?????????? #???????????????????? | | ?????????? @ #???????????????????? | | ?????????? % #???????????????????? | | ?????????? #???????????????????? | | ?????????? #???????????????????? | | ?????????? #???????????????????? | | ???????????#####+##### #???????????????????? | | ?????????????????????# #???????????????????? | | ?????????????????????# g #???????????????????? | | ?????????????????????# k k k #???????????????????? | | ?????????????????????# % %#???????????????????? | | ?????????????????????# !!+???????????????????? | | ?????????????????????# u#???????????????????? | | ?????????????????????# #???????????????????? | | ????????????????????## #???????????????????? | | ????????????????????# #???????????????????? | | ????????????????????#T #???????????????????? | | ????????????????????## #???????????????????? | | ?????????????????????# #???????????????????? | | ?????????????????????# #???????????????????? | | ?????????????????????# #???????????????????? | | ?????????????????????# #???????????????????? | | ?????????????????????# #???????????????????? | | ##???????????????????# #???????????????????? | | ???????????????????# #???????????????????? | | ?????????????????????# #???????????????????? | +----------------------------------------------------+ Best States ------------- Heat Dissipation 34 Energy Generation 40 Energy Capacity 580 Matter Stores 300 Matter Capacity 300 Sight Range 16 Robot Scan Range 14 Terrain Scan Range 16 Terrain Scan Density 210 EM Shielding 2 Armor Coverage 305 Resistance: KI 20 Resistance: TH 20 Resistance: EX 20 Resistance: EM 20 Resistance: I 20 Resistance: S 20 Resistance: P 20 Utility Shielding 66 Evasion (%) 55 Targeting Accuracy 6 Recoil Reduction 2 Kinecelleration 30 Salvage Targeting 2 Offensive Hacking 20 Item Schematics ----------------- None Robot Schematics ------------------ None Fabricated ------------ T-07 Excavator | x1 | -7/Factory | Preloaded Alien Tech Used ----------------- None Achievements -------------- 5k Club Backstab Crack Shot Everything Is Under Control First Step to Greatness Made in Tau Ceti IV My Command Is Your Wish One Hack Too Far Oops Please Form A Line Power Corrupts Risk Taker Serviceable Loadout Storm Trooper The More The Merrier Tourist Uninvited Guest Challenges ------------ None Game ------ Seed AlphaTargetingStick Manual? 0 Play Time 01:24:55 Cumulative 1.3 hours Start 2024.04.15 @ 05:05:48 End 2024.04.15 @ 06:31:17 Sessions 1 Manual Loads 0 Difficulty Adventurer Special Mode None Game No. 1 Rogue 0 Adventurer 1 Explorer 0 Win Type - Total 0 Types 0/0/0/0/0/0/0/0/0 Lore% 1 Gallery% 5 Achievement% 6 Wizard Run 0 Options --------- Layout 1 ASCII 0 Keyboard 0 Movement Mouse Keybinds 0 Fullscreen 2 Font 24/Smallcaps Map View 50x35 Zoom Use 0% Tactical HUD 0 Map Filters NONE Filters NONE Steam 1 RUN: 0247b289-3de1-4fc9-9207-d9e64ad23f51